Cogmind - Beta 14 @@@ ROGUE MODE // 2024.10.22 @ 16:13:58 Player: VraethrDalkr Result: Destroyed by H-55 Commando with Gauss Rifle Performance ------------- Evolutions (2) 1000 Regions Visited (3) 600 Robots Destroyed (16) 80 Value Destroyed (282) 282 Prototype IDs (7) 140 Alien Tech Used (0) 0 Bonus (0) 0 TOTAL SCORE: 2102 Bonus ------- None Cogmind --------- Core Integrity 0/550 Matter 111/300 Energy 83/100 System Corruption 0% Temperature Hot (206) Movement Core (50) Location -8/Materials Parts ------- > --- POWER (2) -------- (None) > --- PROPULSION (3) --- (None) > --- UTILITY (4) ------ (None) > --- WEAPON (2) ------- (None) > --- INVENTORY (5) ---- Improved VTOL Module Advanced Weight Redist. System Peak State ------------ > --- POWER ------------ Light Ion Engine Improved Ion Engine > --- PROPULSION ------- Armored Wheel Hover Unit > --- UTILITY ---------- Small Storage Unit Advanced Weight Redist. System Visual Processing Unit Hacking Suite > --- WEAPON ----------- Heavy Particle Gun Autogun > --- INVENTORY -------- Nuclear Core Armored Wheel Improved VTOL Module Improved Heat Sink Advanced Weight Redist. System Improved Medium Laser Autogun [Rating: 23] Favorites ----------- Power Light Ion Engine Engine Light Ion Engine Power Core Nuclear Core Propulsion Wheel Wheel Wheel Hover Unit Hover Unit Utility Small Storage Unit Device Improved Terrain Scanner Storage Small Storage Unit Processor Visual Processing Unit Hackware Hacking Suite Weapon Small Laser Energy Gun Small Laser Ballistic Gun Assault Rifle Build | -11 -10 -9 -8 ------- Run | Yrd Mat Mat Mat Slots Evolved 4 | . . 2 2 Power 1 | . . . 1 Propulsion 1 | . . 1 . Utility 2 | . . 1 1 Weapon . | . . . . Parts Attached 38 | 7 15 5 11 Power 8 | 1 3 1 3 Engine 7 | 1 3 1 2 Core 1 | . . . 1 Reactor . | . . . . Propulsion 12 | 2 7 1 2 Treads . | . . . . Leg . | . . . . Wheel 7 | 2 3 . 2 Hover 5 | . 4 1 . Flight . | . . . . Utility 7 | 2 1 1 3 Device 4 | 1 . . 3 Storage 1 | 1 . . . Processor 1 | . . 1 . Hackware 1 | . 1 . . Protection . | . . . . Artifact . | . . . . Weapon 11 | 2 4 2 3 Energy Gun 6 | 1 2 1 2 Energy Cannon . | . . . . Ballistic Gun 5 | 1 2 1 1 Ballistic Cannon . | . . . . Launcher . | . . . . Special Weapon . | . . . . Impact Weapon . | . . . . Slashing Weapon . | . . . . Piercing Weapon . | . . . . Special Melee Weapon . | . . . . Unidentified Prototypes 2 | . . 1 1 Parts Lost 18 | . 4 . 14 Power 5 | . 1 . 4 Propulsion 6 | . 1 . 5 Utility 3 | . 1 . 2 Weapon 4 | . 1 . 3 Highest Loss Streak 13 | . 4 . 13 To Critical Strikes . | . . . . Average Slot Usage (%) 96 | . 99 100 87 Engine 13 | . 14 11 13 Wheel 14 | . 21 . 3 Hover 12 | . 6 33 17 Device 8 | . 10 . 7 Storage 12 | . 14 11 8 Processor 3 | . . 11 8 Hackware 5 | . 3 11 8 Energy Gun 12 | . 14 11 8 Ballistic Gun 12 | . 13 11 8 Peak Build Rating 23 | 9 10 17 23 Average Rating 11 | 6 9 15 20 On Entrance 9 | . 9 10 17 Naked Turns 2 | . . . 2 Heaviest Build 21 | 12 12 18 21 Greatest Support 33 | 20 20 18 33 Greatest Overweight (x) . | . . . . Average Overweight (x) . | . . . . Largest Inventory Capacity 8 | 8 8 8 8 Average Capacity 7 | 7 8 8 7 Most Carried 8 | 8 8 8 8 Average Carried 6 | 4 7 7 6 Final Capacity 8 | 8 8 8 5 Final Carried 8 | 8 8 8 2 Class Distribution -------------------- 72% | Mutant 27% | Scavenger-Mutant Dominant Class ---------------- Mutant | -10/Materials Scavenger-Mutant | -9/Materials Scavenger-Mutant | -8/Materials Resources | -11 -10 -9 -8 ----------- Run | Yrd Mat Mat Mat Matter Collected 470 | 327 96 . 47 Remotely . | . . . . Salvage Created 442 | 162 176 . 104 Parts 35 | 14 15 . 6 Haulers Intercepted . | . . . . Recyclers Shooed 1 | . 1 . . Parts Field Recycled . | . . . . Retrieved Matter . | . . . . Parts Self-Destructed . | . . . . Prevented . | . . . . Kills | -11 -10 -9 -8 ------- Run | Yrd Mat Mat Mat Combat Hostiles Destroyed 7 | . 5 . 2 Guns 7 | . 5 . 2 Classes Destroyed 7 | 3 4 . . Worker 2 | 2 . . . Tunneler 3 | 3 . . . Recycler 1 | 1 . . . Operator 1 | . 1 . . Watcher 2 | . 2 . . Swarmer 3 | . 3 . . Grunt 4 | . 2 . 2 Best Kill Streak 3 | 3 3 . 2 Combat Bots Only 3 | . 3 . 2 Max Kills in Single Turn 1 | 1 1 . 1 Gunslinging . | . . . . Exploded . | . . . . Melee . | . . . . Uniques/NPCs Destroyed . | . . . . Combat | -11 -10 -9 -8 -------- Run | Yrd Mat Mat Mat Hostile Shots Fired 189 | . 18 2 169 Missed 41 | . 5 2 34 Damage Taken 1904 | . 212 . 1692 Core 587 | . 24 . 563 Absorbed by Shields . | . . . . Regen/Repaired (Parts) 28 | . 28 . . Core Remaining (%) 96 | 100 90 100 . Volleys Fired 68 | 19 32 . 17 Largest 2 | 2 2 . 2 Hottest 79 | 60 60 . 79 Shots Fired 136 | 38 64 . 34 Gun 136 | 38 64 . 34 Cannon . | . . . . Launcher . | . . . . Special . | . . . . Kinetic 68 | 19 32 . 17 Thermal 68 | 19 32 . 17 Explosive . | . . . . Electromagnetic . | . . . . Robot Hit Streak 8 | 7 8 . 8 Robot Miss Streak 5 | 3 4 . 5 Penetration Max . | . . . . Secondary Targets 1 | . . . 1 Max Gunslinging Chain 1 | . . . 1 Shots Hit Robots 80 | 21 37 . 22 Core Hits 31 | 7 17 . 7 Critical Kills . | . . . . Critical Parts Destroyed 3 | 1 . . 2 Critical Strikes 4 | 1 . . 3 Burn 1 | . . . 1 Destroy 3 | 1 . . 2 Melee Attacks . | . . . . Impact . | . . . . Slashing . | . . . . Piercing . | . . . . Sneak Attacks . | . . . . Combat Hostiles . | . . . . Follow-up Attacks . | . . . . Damage Inflicted 1029 | 241 397 . 391 Guns 1029 | 241 397 . 391 Cannons . | . . . . Explosions . | . . . . Melee . | . . . . Ramming . | . . . . Kinetic 493 | 130 159 . 204 Thermal 536 | 111 238 . 187 Explosive . | . . . . Electromagnetic . | . . . . Impact . | . . . . Slashing . | . . . . Piercing . | . . . . Highest Corruption . | . . . . Average Corruption . | . . . . Corruption Purged . | . . . . Corruption Blocked . | . . . . Overload Shots . | . . . . Overflow Damage . | . . . . Projectiles . | . . . . Explosions . | . . . . Melee . | . . . . Knockbacks . | . . . . Impact . | . . . . Kinetic . | . . . . Secondary . | . . . . Self-Inflicted Damage . | . . . . Shots . | . . . . Rammed . | . . . . Targets Rammed . | . . . . Kicked . | . . . . Crushed . | . . . . Highest Temperature 242 | . 84 . 242 Average Temperature 72 | . 33 . 119 Received Heat Transfer 642 | . 39 . 603 Siege Activations . | . . . . Robots Corrupted . | . . . . Combat Hostiles . | . . . . Parts Fried . | . . . . Impact Corruptions . | . . . . Robots Melted . | . . . . Combat Hostiles . | . . . . Parts Melted . | . . . . Heat Transferred 1244 | 250 550 . 444 Parts Sabotaged . | . . . . Parts Stolen . | . . . . Parts Stripped . | . . . . Power Chain Reactions . | . . . . Alert | -11 -10 -9 -8 ------- Run | Yrd Mat Mat Mat Peak Influence 270 | 30 270 100 165 Initial 42 | . 19 36 42 Average 64 | 10 77 48 81 Maximum Alert Level 1 | . 1 . . Low Security (%) 96 | 100 93 100 100 Level 1 3 | . 6 . . Level 2 . | . . . . Level 3 . | . . . . Level 4 . | . . . . Level 5 . | . . . . High Security . | . . . . Max Security . | . . . . Squads Dispatched 4 | . 1 . 3 Investigation . | . . . . Extermination . | . . . . Reinforcement 4 | . 1 . 3 Assault . | . . . . Garrison . | . . . . Intercept . | . . . . Searches Triggered . | . . . . Construction Impeded . | . . . . Haulers Reinforced . | . . . . Active Scanning Responses . | . . . . Cargo Convoy Interrupts . | . . . . Stealth | -11 -10 -9 -8 --------- Run | Yrd Mat Mat Mat Distress Signals 3 | . 2 . 1 Communications Jammed . | . . . . Distress Signals . | . . . . Times Spotted 44 | . 15 3 26 Peak Tracking Total 17 | . 6 3 17 Tactical Retreats 5 | . 2 . 3 Traps | -11 -10 -9 -8 ------- Run | Yrd Mat Mat Mat Traps Triggered 2 | . 2 . . Indirectly . | . . . . Trap Hack Attempts . | . . . . Triggered . | . . . . Disarmed . | . . . . Reprogrammed . | . . . . Reused . | . . . . Traps Extracted . | . . . . Installed . | . . . . Triggered . | . . . . Machines | -11 -10 -9 -8 ---------- Run | Yrd Mat Mat Mat Machines Disabled . | . . . . Max in Single Turn . | . . . . Machines Repaired . | . . . . Machines Dismantled . | . . . . Machines Sabotaged . | . . . . Overloaded Fab Kills . | . . . . Hacking | -11 -10 -9 -8 --------- Run | Yrd Mat Mat Mat Machines Accessed 8 | . 6 1 1 Terminals 6 | . 4 1 1 Fabricators . | . . . . Repair Stations 1 | . 1 . . Recycling Units 1 | . 1 . . Scanalyzers . | . . . . Garrison Access . | . . . . Total Hacks 24 | . 18 2 4 Successful 18 | . 13 2 3 Failed 6 | . 5 . 1 Catastrophic 2 | . 1 . 1 Database Lockouts . | . . . . Manual . | . . . . Terminals 17 | . 11 2 4 Fabricators . | . . . . Repair Stations 6 | . 6 . . Recycling Units 1 | . 1 . . Scanalyzers . | . . . . Garrison Access . | . . . . Terminal Hacks 13 | . 8 2 3 Prototype ID Bank 3 | . 2 1 . Branch Access Points 1 | . . . 1 Alert Level 2 | . 2 . . Locate Traps 4 | . 2 1 1 Zone Layout 3 | . 2 . 1 Fabricator Hacks . | . . . . Repair Station Hacks 5 | . 5 . . Scan Component 3 | . 3 . . Repair 2 | . 2 . . Recycling Unit Hacks . | . . . . Scanalyzer . | . . . . Garrison Access Hacks . | . . . . Unauthorized Hacks . | . . . . Terminals . | . . . . Fabricators . | . . . . Repair Stations . | . . . . Recycling Units . | . . . . Scanalyzers . | . . . . Garrison Access . | . . . . Data Cores Recovered . | . . . . Used . | . . . . Hacking Detections 6 | . 4 1 1 Full Trace Events 1 | . 1 . . Feedback Events . | . . . . Feedback Blocked . | . . . . Robot Schematics Acquired . | . . . . Robots Built . | . . . . Authchips . | . . . . Time . | . . . . Total Robot Build Rating . | . . . . Part Schematics Acquired . | . . . . Parts Built . | . . . . Authchips . | . . . . Time . | . . . . Total Part Build Rating . | . . . . Parts Repaired 2 | . 2 . . Time 52 | . 52 . . Parts Recycled . | . . . . Recycled Matter . | . . . . Retrieved Matter . | . . . . Retrieved Components . | . . . . Parts Scanalyzed . | . . . . Part Schematics Acquired . | . . . . Parts Damaged . | . . . . Bothacking | -11 -10 -9 -8 ------------ Run | Yrd Mat Mat Mat Used RIF Installer . | . . . . Robots Hacked . | . . . . Non-combat . | . . . . Combat . | . . . . Robot Hacks Applied . | . . . . Relay Couplers Released . | . . . . Fabnet Peak Effective % . | . . . . Robots Rewired . | . . . . Allies Hacked . | . . . . Hacks Repelled . | . . . . Allies | -11 -10 -9 -8 -------- Run | Yrd Mat Mat Mat Total Allies . | . . . . Largest Group . | . . . . Highest-Rated Group . | . . . . Highest-Rated Ally . | . . . . Total Orders . | . . . . Ally Attacks . | . . . . Total Damage . | . . . . Kills . | . . . . Allies Corrupted . | . . . . Allies Melted . | . . . . Intel | -11 -10 -9 -8 ------- Run | Yrd Mat Mat Mat Robot Analysis Total . | . . . . Derelict Logs Recovered . | . . . . Drone Launches . | . . . . Drone Recoveries . | . . . . Exploration | -11 -10 -9 -8 ------------- Run | Yrd Mat Mat Mat Turns Passed 1069 | 179 547 97 246 Spaces Moved 1089 | 130 488 163 308 Core 12 | 7 . . 5 Treads . | . . . . Legs . | . . . . Wheels 505 | 123 364 . 18 Hover 572 | . 124 163 285 Flight . | . . . . Fastest Speed 50 | 50 56 52 50 Average Speed 65 | 78 73 52 55 Slowest Speed 90 | 80 80 52 90 Overloaded Moves . | . . . . Propulsion Burnouts . | . . . . Robots Hopped . | . . . . Cave-ins Triggered . | . . . . Exploration Rate (%) 28 | 5 53 27 27 Regions Visited 3 Branch Regions . Pre-discovered Areas . | . . . . Known Exits Taken . | . . . . Unknown Exits Taken 3 | 1 1 1 . Scrap Searched . | . . . . Spaces Dug . | . . . . Terrain Destroyed . | . . . . Melee . | . . . . Projectile . | . . . . AOE . | . . . . Terrain Rammed . | . . . . Walls Destroyed . | . . . . Machines Disabled . | . . . . Actions | -11 -10 -9 -8 --------- Run | Yrd Mat Mat Mat Total 1317 | 167 615 177 358 Wait 68 | . 59 . 9 Move 1086 | 129 487 162 308 Hop . | . . . . Pick Up 34 | 10 13 4 7 Fast Attach 14 | 7 5 1 1 Attach 15 | . 4 2 9 Detach 1 | . . 1 . Swap 9 | . 6 2 1 Drop 22 | 2 9 5 6 Fire 68 | 19 32 . 17 Melee . | . . . . Ram . | . . . . Kick . | . . . . Crush . | . . . . Escape Stasis . | . . . . Rewire . | . . . . Trap . | . . . . Miscellaneous . | . . . . Route ------- -11/Scrapyard -10/Materials -9/Materials -8/Materials History --------- Turn | Location | Event 17 | -11/Scrapyard | Discovered new exit (range 16) 180 | -11/Scrapyard | Entered Materials 260 | -10/Materials | Repaired Hover Unit 303 | -10/Materials | Build established: Mutant 381 | -10/Materials | Discovered new exit (range 14) 611 | -10/Materials | Lost 4 parts (1p1n1u1w) 644 | -10/Materials | Repaired Hover Unit 727 | -10/Materials | Entered another Materials area 727 | -9/Materials | Evolved 2 slots: Propulsion x1, Utility x1 809 | -9/Materials | Discovered new exit (range 17) 824 | -9/Materials | Entered another Materials area 824 | -8/Materials | Evolved 2 slots: Power x1, Utility x1 1064 | -8/Materials | Core integrity fell below 50% 1068 | -8/Materials | Released all parts (4) 1070 | -8/Materials | Core integrity fell below 20% 1070 | -8/Materials | Destroyed by H-55 Commando with Gauss Rifle Last Messages --------------- 01059_ G-47 Trooper destroyed. 01060_ Slug penetrates Wall. 01061_ Wall collapses. 01061_ Slug penetrates Wall. 01061_ Slug penetrates G-47 Trooper. 01063_ Penetrated by Slug. 01063_ Imp. Heat Sink destroyed. 01064_ Slug penetrates Wall. 01064_ Arm. Wheel destroyed. 01066_ Penetrated by Slug. 01067_ Slug penetrates Wall. 01067_ Autogun destroyed. 01068_ Critical hit (Burn: +37). 01068_ Released Visual Processing Unit. 01068_ Released Sml. Storage Unit. 01068_ Released Hacking Suite. 01068_ Released Imp. Medium Laser. 01069_ Penetrated by Slug. 01070_ Slug penetrates Wall. 01070_ Penetrated by Slug. Map ----- +----------------------------------------------------+ | | | | | | | | | | | | | | | | | | | | | | | | | ?###########???????????????#######???????????????? | | ?# #??????????????? #???????????????? | | ?# ![ #?????#######??# """#???????????????? | | ?# [[ #######T#" "#### """#???????????????? | | ?# # ]!! # ! """#???????????????? | | ?#####+##### ]!! h[#= ""#???????????????? | | ###### #???# !! !h== "#???????????????? | | # # #???# g *; [ #???????##??????? | | # T # ##### bh#=%* #??????? ??????? | | # + #### Y ; ! #??????? #?????? | | #** # #####+####% #![ T" #??????? +?????? | | #* # #! #!!= # " #??????? #?????? | | #### # # #!!= # #??????# #?????? | | ???### # #!== @########??????# #?????? | | ##### # # #??????#??????# #?????? | | # # ##????? ?????# ####### | | ### + # #?????"""????# # | | ???# # = + a #??????"" ???# # """"" | | ???# # ]####"T"# #???????" ??# # """"" | | ???# # = #??#"""# #???????? ?# # """"" | | ???# ##########??##### #??########+## + %"""" | | ???# ################# #### # """"" | | ???# # """"" | | ???# ###### ##### #####;#####+######### # """"" | | ???# #????# #???# # # #???# # | | ???+ ######+###?# #/ """ # ##### #####+# | | ???# # [ #?# # """ # + ##### # | | ???# #! """ ### # """ # != | ##### # | | #### # """ + #! # = #####+######## | | # """ ### # # ! #! | | + #?# ######## # | | # """ #?# #??????# # """"" | | +### # ] """ ###+######?# # """"""""" | | ???# # """ # #?#+######## """ """ | | ???# # #""" ### ###????# | | ???# ##########""" # ################### | | ???# ^##########""" # #???????? | | ???# ^^ / + T #???????? | +----------------------------------------------------+ Best States ------------- Heat Dissipation 45 Energy Generation 17 Energy Capacity 290 Matter Stores 300 Matter Capacity 300 Sight Range 18 Terrain Scan Range 16 Terrain Scan Density 10 Additional Mass Support 9 Evasion (%) 54 Offensive Hacking 10 Item Schematics ----------------- None Robot Schematics ------------------ None Fabricated ------------ Nothing Alien Tech Used ----------------- None Achievements -------------- None Challenges ------------ None Game ------ Seed CloakComponentPod Manual? 0 Play Time 00:21:00 Cumulative 124.5 hours Start 2024.10.22 @ 15:54:44 End 2024.10.22 @ 16:13:58 Sessions 1 Manual Loads 0 Difficulty Rogue Special Mode None Game No. 62 Rogue 52 Adventurer 10 Explorer 0 Win Type - Total 1 Types 0/0/1/0/0/0/0/0/0 Lore% 27 Gallery% 48 Achievement% 41 Wizard Run 0 Options --------- Layout 1 ASCII 0 Keyboard 0 Movement Arrows Keybinds 0 Fullscreen 2 Font 32/SmallcapsGlow Map View 50x35 Zoom Use 0% Tactical HUD 1 Map Filters NONE Filters NONE Steam 0 RUN: dd38a03c-7812-4805-acdc-5b56579eee6d